fUSD/lending_fUSD_20250128
["ID","MTS","AMOUNT","RATE_DAILY","PERIOD"]
[350657538,1738037446677,-1000.0,0.00018615,2]
[350657539,1738037446687,-150.0,0.00018617,2]
[350657540,1738037446697,-176847.0,0.00018618,2]
[350657541,1738037446707,-500.0,0.0001863,2]
[350657542,1738037446717,-500.0,0.0001863,2]
[350657543,1738037446726,-500.0,0.0001863,2]
[350657544,1738037446735,-500.0,0.0001863,2]
[350657545,1738037446744,-500.0,0.0001863,2]
[350657546,1738037446754,-500.0,0.0001863,2]
[350657547,1738037446764,-603.079874,0.0001863,2]
[350657548,1738037446773,-578.02198926,0.0001863,2]
[350657549,1738037446783,-150.0,0.00018632,2]
[350657550,1738037446792,-150.0,0.00018633,2]
[350657551,1738037446801,-500.0,0.00018633,2]
[350657552,1738037446811,-475.38897128,0.00018636,2]
[350657553,1738037446820,-52989.57416075,0.00018636,2]
[350657554,1738037446829,-50421.59540597,0.00018637,2]
[350657555,1738037446976,-150.0,0.0001864,2]
[350657556,1738037446993,-150.0,0.00018647,2]
[350657557,1738037447003,-150.0,0.00018648,2]
[350657558,1738037447013,-150.47460969,0.00018649,2]
[350657559,1738037447025,-500.0,0.0001865,2]
[350657560,1738037447035,-1000.0,0.0001865,2]
[350657561,1738037447044,-150.0,0.00018652,2]
[350657562,1738037447053,-150.0,0.00018652,2]
[350657563,1738037447062,-2204.0,0.00018657,2]
[350657564,1738037447071,-1000.0,0.00018662,2]
[350657565,1738037447081,-150.0,0.00018663,2]
[350657566,1738037447090,-150.0,0.00018663,2]
[350657567,1738037447099,-1000.0,0.00018666,2]
[350657568,1738037447108,-500.0,0.00018666,2]
[350657569,1738037447117,-150.0,0.00018666,2]
[350657570,1738037447127,-761.0,0.00018666,2]
[350657571,1738037447136,-150.0,0.00018668,2]
[350657572,1738037447145,-52989.57416075,0.00018668,2]
[350657573,1738037447156,-50421.59540597,0.00018669,2]
[350657574,1738037447166,-150.0,0.00018672,2]
[350657575,1738037447180,-297.00283186,0.00018673,2]
[350657576,1738037447189,-500.0,0.00018673,2]
[350657577,1738037447198,-501.16912728,0.00018673,2]
[350657578,1738037447208,-1000.0,0.00018675,2]
[350657579,1738037447217,-150.0,0.00018681,2]
[350657580,1738037447227,-150.0,0.00018681,2]
[350657581,1738037447237,-207.0327439,0.00018682,2]
[350657582,1738037447247,-150.0,0.00018685,2]
[350657583,1738037447255,-2115.9922,0.0001869,2]
[350657584,1738037447266,-150.0,0.00018695,2]
[350657585,1738037447275,-150.0,0.00018695,2]
[350657586,1738037447284,-150.0,0.00018697,2]
[350657587,1738037447293,-150.0,0.00018699,2]
[350657588,1738037447302,-500.0,0.00018699,2]
[350657589,1738037447311,-150.0,0.00018699,2]
[350657590,1738037447320,-159.889,0.000187,2]
[350657591,1738037447328,-12876.5446,0.000187,2]
[350657592,1738037447337,-169.74440149,0.000187,2]
[350657593,1738037447347,-50421.59540597,0.000187,2]
[350657594,1738037447356,-343.09,0.000187,31]
[350657595,1738037447365,-343.09,0.000187,31]
[350657596,1738037447374,-343.09,0.000187,31]
[350657597,1738037447383,-343.09,0.000187,31]
[350657598,1738037447392,-343.09,0.000187,31]
[350657599,1738037447401,-343.09,0.000187,31]
[350657600,1738037447410,-343.09,0.000187,31]
[350657601,1738037447419,-343.09,0.000187,31]
[350657602,1738037447429,-343.09,0.000187,31]
[350657603,1738037447438,-343.09,0.000187,31]
[350657604,1738037447448,-343.09,0.000187,31]
[350657605,1738037447457,-343.09,0.000187,31]
[350657606,1738037447466,-343.09,0.000187,31]
[350657607,1738037447475,-343.09,0.000187,31]
[350657608,1738037447484,-343.09,0.000187,31]
[350657609,1738037447493,-343.09,0.000187,31]
[350657610,1738037447502,-52989.57416075,0.000187,2]
[350657611,1738037447512,-4424.7960553,0.000187,3]
[350657612,1738037447522,-150.0,0.00018701,2]
[350657613,1738037447534,-1000.0,0.00018701,2]
[350657614,1738037447543,-150.0,0.00018701,2]
[350657615,1738037447554,-150.0,0.00018702,2]
[350657616,1738037447563,-150.0,0.00018705,2]
[350657617,1738037447572,-1000.0,0.00018705,2]
[350657618,1738037447581,-150.0,0.00018708,2]
[350657619,1738037447590,-150.0,0.00018708,2]
[350657620,1738037447599,-150.0,0.0001871,2]
[350657621,1738037447608,-150.0,0.00018712,2]
[350657622,1738037447618,-150.0,0.00018713,2]
[350657623,1738037447627,-150.0,0.00018714,2]
[350657624,1738037447636,-150.0,0.00018715,2]
[350657625,1738037447645,-150.0,0.00018716,2]
[350657626,1738037447653,-150.0,0.00018716,2]
[350657627,1738037447663,-150.0,0.00018716,2]
[350657628,1738037447671,-1000.0,0.00018716,2]
[350657629,1738037447680,-150.0,0.0001872,2]
[350657630,1738037447689,-150.0,0.00018722,2]
[350657631,1738037447699,-150.0,0.00018725,2]
[350657632,1738037447708,-150.0,0.00018725,2]
[350657633,1738037447717,-1000.0,0.00018727,2]
[350657634,1738037447726,-150.0,0.00018727,2]
[350657635,1738037447735,-150.0,0.00018727,2]
[350657636,1738037447744,-150.0,0.00018728,2]
[350657637,1738037447753,-150.0,0.00018729,2]
[350657638,1738037447763,-150.0,0.00018731,2]
[350657639,1738037447772,-150.0,0.00018732,2]
[350657640,1738037447780,-150.0,0.00018734,2]
[350657641,1738037447789,-150.0,0.00018735,2]
[350657642,1738037447798,-1000.0,0.00018737,2]
[350657643,1738037447807,-150.0,0.00018741,2]
[350657644,1738037447815,-150.0,0.00018741,2]
[350657645,1738037447824,-150.0,0.00018744,2]
[350657646,1738037447833,-150.0,0.00018744,2]
[350657647,1738037447842,-1000.0,0.00018748,2]
[350657648,1738037447851,-150.0,0.0001875,2]
[350657649,1738037447860,-2000.0,0.00018751,2]
[350657650,1738037447869,-150.0,0.00018754,2]
[350657651,1738037447877,-150.0,0.00018754,2]
[350657652,1738037447886,-150.0,0.00018756,2]
[350657653,1738037447895,-150.0,0.00018763,2]
[350657654,1738037447904,-150.0,0.00018765,2]
[350657655,1738037447913,-150.0,0.00018765,2]
[350657656,1738037447922,-1000.0,0.00018767,2]
[350657657,1738037447931,-400.0,0.0001877,2]
[350657658,1738037447941,-400.0,0.0001877,2]
[350657659,1738037447953,-150.0,0.0001877,2]
[350657660,1738037447962,-500.0,0.00018773,2]
[350657661,1738037447971,-178.53563493,0.00018773,2]
[350657662,1738037447980,-150.0,0.00018774,2]
[350657663,1738037447989,-150.0,0.00018779,2]
[350657664,1738037447998,-150.0,0.00018779,2]
[350657665,1738037448009,-200.0,0.00018783,2]
[350657666,1738037448018,-150.0,0.00018785,2]
[350657667,1738037448028,-150.0,0.00018786,2]
[350657668,1738037448037,-74495.86384385,0.0001879,2]
[350657669,1738037448047,-150.0,0.00018791,2]
[350657670,1738037448056,-150.0,0.00018793,2]
[350657671,1738037448066,-150.0,0.00018793,2]
[350657672,1738037448075,-150.0,0.00018795,2]
[350657673,1738037448084,-150.0,0.00018795,2]
[350657674,1738037448094,-150.49824129,0.00018795,2]
[350657675,1738037448103,-150.0,0.00018795,2]
[350657676,1738037448112,-150.20641906,0.00018795,2]
[350657677,1738037448122,-150.4837568,0.00018795,2]
[350657678,1738037448131,-150.08266986,0.00018795,2]
[350657679,1738037448140,-150.03735363,0.00018795,2]
[350657680,1738037448150,-150.01545479,0.00018795,2]
[350657681,1738037448159,-150.16080516,0.00018795,2]
[350657682,1738037448176,-150.22080162,0.00018795,2]
[350657683,1738037448185,-150.0,0.00018795,2]
[350657684,1738037448195,-150.0,0.00018795,2]
[350657685,1738037448204,-150.0,0.00018797,2]
[350657686,1738037448213,-661.35,0.00018799,2]
[350657687,1738037448223,-500.0,0.00018799,2]
[350657688,1738037448232,-500.0,0.00018799,2]
[350657689,1738037448242,-500.0,0.00018799,2]
[350657690,1738037448251,-500.0,0.00018799,2]
[350657691,1738037448262,-500.0,0.00018799,2]
[350657692,1738037448271,-500.0,0.00018799,2]
[350657693,1738037448280,-500.0,0.00018799,2]
[350657694,1738037448289,-500.0,0.00018799,2]
[350657695,1738037448299,-474.26995353,0.00018799,2]
[350657696,1738037448308,-395.68707188,0.000188,2]
[350657697,1738037448317,-311330.23907453,0.000188,2]
[350657698,1738037448327,-222.23732049,0.000188,2]
[350657699,1738037448336,-527179.04570432,0.000188,2]
[350657700,1738037448350,-725.00574762,0.000188,2]
[350657701,1738037448361,-1470.51803953,0.000188,2]
[350657702,1738037448372,-1051.96977662,0.000188,2]
[350657703,1738037448383,-2345.275883,0.000188,2]
[350657704,1738037448394,-432.66409938,0.000188,2]
[350657705,1738037448405,-1717.97563696,0.000188,2]
[350657706,1738037448416,-364.3703331,0.000188,2]
[350657707,1738037448428,-649.69252998,0.000188,2]
[350657711,1738037465360,5288.5777142,0.00011864,2]
[350657712,1738037465768,5288.5777142,0.00011876,2]
[350657713,1738037466043,5288.5777142,0.00011838,2]
[350657714,1738037466353,5288.5777142,0.0001185,2]
[350657715,1738037466640,5288.5777142,0.00011904,2]
[350657716,1738037483432,691.56404821,0.00011837,2]
[350657717,1738037483690,691.56404821,0.00011893,2]
[350657718,1738037483969,691.56404821,0.0001187,2]
[350657719,1738037484238,691.56404821,0.00011861,2]
[350657720,1738037484526,691.56404821,0.00011874,2]
[350657721,1738037512720,200.0,0.00011862,2]
[350657722,1738037520585,270.47099615,0.00011839,2]
[350657723,1738037520854,270.47099615,0.00011861,2]
[350657724,1738037521118,270.47099615,0.00011913,2]
[350657725,1738037521490,270.47099615,0.0001185,2]
[350657726,1738037521780,270.47099615,0.00011869,2]
[350657727,1738037528671,200.0,0.00011856,2]
[350657728,1738037536705,200.0,0.00011837,2]
[350657747,1738038092921,155.88,0.00010137,2]
[350657748,1738038308049,644.12,0.0001,2]
[350657749,1738038308073,800.0,0.0001,2]
[350657750,1738038308096,800.0,0.0001,2]
[350657751,1738038308119,700.0,0.0001,2]
[350657752,1738038308146,413397.97042105,0.0001,2]
[350657753,1738038308175,34101.0,0.0001,2]
[350657759,1738038421821,-300.0,9.999e-05,2]
[350657760,1738038421845,-500.0,0.0001,2]
[350657761,1738038423376,-150.0,9.999e-05,2]
[350657762,1738038423401,-650.0,0.0001,2]
[350657763,1738038424857,-800.0,0.0001,2]
[350657765,1738038425939,-800.0,0.0001,2]
[350657771,1738038468430,3715.0,9.606e-05,2]
[350657823,1738038631927,-150.0,9.999e-05,2]
[350657824,1738038631936,-780053.49323588,0.0001,2]
[350657825,1738038632096,-6834.64085429,0.0001,2]
[350657826,1738038632107,-2614.97457783,0.0001,2]
[350657827,1738038632118,-3653.74999986,0.0001,2]
[350657828,1738038632129,-3592.79863,0.0001,2]
[350657829,1738038632140,-3590.61534836,0.0001,2]
[350657830,1738038632151,-409.8822205,0.0001,2]
[350657831,1738038632162,-421.3557999,0.0001,2]
[350657832,1738038632173,-1151.55012815,0.0001,2]
[350657833,1738038632183,-256.7011023,0.0001,2]
[350657834,1738038636142,-254.46,0.0001,2]
[350657835,1738038636205,-303066.78477839,0.0001,2]
[350657836,1738038636263,-10533.61196256,0.0001,2]
[350657845,1738038637824,-1090749.8782214,0.0001,2]
[350657846,1738038637833,-247.21069504,0.0001,2]
[350657847,1738038637843,-255.0,0.00010999,2]
[350657848,1738038637851,-116168.88516355,0.00011,2]
[350657849,1738038637860,-166.80627001,0.00011099,2]
[350657850,1738038637870,-759.71621303,0.00012,2]
[350657851,1738038637881,-300.0,0.00012,2]
[350657852,1738038637890,-3651.94056816,0.00012,2]
[350657853,1738038637899,-328.0,0.00012099,2]
[350657854,1738038637909,-550.0,0.00013,2]
[350657855,1738038637918,-416.0,0.0001335,2]
[350657856,1738038637928,-500.0,0.00013699,2]
[350657857,1738038637937,-500.0,0.00013699,2]
[350657858,1738038637946,-500.0,0.00013699,2]
[350657859,1738038637955,-500.0,0.00013699,2]
[350657860,1738038637965,-301.18073185,0.00013699,2]
[350657861,1738038637974,-416.0,0.000137,2]
[350657862,1738038637984,-3964.19013961,0.00014,2]
[350657863,1738038637993,-416.0,0.0001405,2]
[350657864,1738038638002,-9856.2215696,0.0001439,2]
[350657865,1738038638011,-416.0,0.000144,2]
[350657866,1738038638020,-416.0,0.0001475,2]
[350657867,1738038638029,-7870.42755717,0.000149,2]
[350657868,1738038638038,-600.0,0.00015,2]
[350657869,1738038638047,-7336.66196767,0.00015,2]
[350657870,1738038638056,-416.0,0.000151,2]
[350657871,1738038638065,-416.0,0.0001545,2]
[350657872,1738038638074,-250.0,0.00015574,2]
[350657873,1738038638083,-416.0,0.000158,2]
[350657874,1738038638093,-416.0,0.0001615,2]
[350657875,1738038638102,-211.0,0.0001615,2]
[350657876,1738038638111,-200.0,0.00016163,2]
[350657877,1738038638120,-500.0,0.00016164,2]
[350657878,1738038638129,-500.0,0.00016164,2]
[350657879,1738038638138,-12067.20280531,0.000163,4]
[350657880,1738038638148,-715.37,0.00016482,2]
[350657881,1738038638157,-32263.84,0.00016484,2]
[350657882,1738038638167,-416.0,0.000165,2]
[350657883,1738038638176,-211.0,0.000165,2]
[350657884,1738038638185,-5033.0,0.000165,2]
[350657885,1738038638195,-6350.9809,0.00016527,2]
[350657886,1738038638204,-23880.0,0.00016616,2]
[350657887,1738038638213,-500.0,0.0001667,2]
[350657888,1738038638222,-416.0,0.0001685,2]
[350657889,1738038638231,-211.0,0.0001685,2]
[350657890,1738038638241,-205.0,0.0001685,2]
[350657891,1738038638250,-650.0,0.00017,2]
[350657892,1738038638259,-4000.0,0.00017175,2]
[350657893,1738038638268,-416.0,0.000172,2]
[350657894,1738038638278,-211.0,0.000172,2]
[350657895,1738038638287,-205.0,0.000172,2]
[350657896,1738038638296,-514.1,0.0001734,2]
[350657897,1738038638305,-300.0,0.00017366,2]
[350657898,1738038638314,-271.54,0.00017403,2]
[350657899,1738038638323,-2859.89,0.00017409,2]
[350657900,1738038638332,-1127.26,0.00017409,2]
[350657901,1738038638341,-163.62,0.00017409,2]
[350657902,1738038638350,-200.0,0.00017427,2]
[350657903,1738038638359,-979.33,0.00017431,2]
[350657904,1738038638369,-540.71,0.00017439,2]
[350657905,1738038638378,-513.11,0.00017447,2]
[350657906,1738038638387,-250.0,0.00017447,2]
[350657907,1738038638396,-473.36,0.00017527,2]
[350657908,1738038638404,-1000.0,0.00017527,2]
[350657909,1738038638413,-1105.45,0.00017542,2]
[350657910,1738038638422,-416.0,0.0001755,2]
[350657911,1738038638431,-211.0,0.0001755,2]
[350657912,1738038638440,-205.0,0.0001755,2]
[350657913,1738038638449,-168.908,0.00017653,2]
[350657914,1738038638458,-1782.142,0.00017653,2]
[350657915,1738038638466,-406.5,0.00017683,2]
[350657916,1738038638475,-286.47,0.00017729,30]
[350657917,1738038638484,-416.0,0.000179,2]
[350657918,1738038638494,-211.0,0.000179,2]
[350657919,1738038638503,-205.0,0.000179,2]
[350657920,1738038638512,-174.54,0.00017924,2]
[350657921,1738038638522,-400.0,0.0001797,2]
[350657922,1738038638531,-2193.7020134,0.00018,2]
[350657923,1738038638541,-1515.62,0.0001804,2]
[350657924,1738038638550,-2193.7020134,0.00018082,2]
[350657925,1738038638559,-2193.7020134,0.00018164,2]
[350657926,1738038638569,-1866.0,0.00018213,2]
[350657927,1738038638578,-1262.0,0.00018213,2]
[350657928,1738038638587,-2950.0,0.00018213,2]
[350657929,1738038638596,-782.0,0.00018213,2]
[350657930,1738038638605,-909.0,0.00018213,2]
[350657931,1738038638614,-269.259,0.00018213,2]
[350657932,1738038638623,-538.0,0.00018213,2]
[350657933,1738038638632,-1107.0,0.00018213,2]
[350657934,1738038638641,-151.455,0.00018213,2]
[350657935,1738038638650,-151.0,0.00018213,2]
[350657936,1738038638659,-2020.0,0.00018213,2]
[350657937,1738038638668,-1271.0,0.00018213,2]
[350657938,1738038638677,-1001.97535354,0.00018229,2]
[350657939,1738038638686,-2193.7020134,0.00018247,2]
[350657940,1738038638695,-416.0,0.0001825,2]
[350657941,1738038638704,-211.0,0.0001825,2]
[350657942,1738038638713,-205.0,0.0001825,2]
[350657943,1738038638722,-200.6255,0.00018346,2]
[350657944,1738038638731,-340.8488,0.00018349,2]
[350657945,1738038638739,-2193.7020134,0.00018356,2]
[350657946,1738038638748,-1307.5333456,0.00018424,2]
[350657947,1738038638757,-2193.7020134,0.00018438,2]
[350657948,1738038638766,-951.048,0.00018465,2]
[350657949,1738038638775,-429.78644604,0.00018513,2]
[350657950,1738038638784,-150.0,0.00018517,2]
[350657951,1738038638793,-2193.7020134,0.00018521,2]
[350657952,1738038638802,-1000.0,0.00018527,2]
[350657953,1738038638811,-150.0,0.00018529,2]
[350657954,1738038638825,-150.0,0.00018529,2]
[350657955,1738038638834,-150.0,0.00018536,2]
[350657956,1738038638843,-150.0,0.00018536,2]
[350657957,1738038638852,-150.0,0.00018536,2]
[350657958,1738038638861,-150.0,0.00018538,2]
[350657959,1738038638871,-150.0,0.00018555,2]
[350657960,1738038638882,-150.0,0.00018556,2]
[350657961,1738038638890,-150.0,0.00018558,2]
[350657962,1738038638899,-150.0,0.00018559,2]
[350657963,1738038638908,-150.0,0.00018559,2]
[350657964,1738038638919,-1000.0,0.00018559,2]
[350657965,1738038638928,-150.0,0.0001856,2]
[350657966,1738038638938,-150.0,0.0001856,2]
[350657967,1738038638947,-150.0,0.00018561,2]
[350657968,1738038638957,-1000.0,0.00018562,2]
[350657969,1738038638966,-150.0,0.00018563,2]
[350657970,1738038638976,-150.0,0.00018563,2]
[350657971,1738038638985,-150.0,0.00018565,2]
[350657972,1738038638994,-150.0,0.00018566,2]
[350657973,1738038639003,-150.0,0.00018567,2]
[350657974,1738038639014,-150.0,0.00018568,2]
[350657975,1738038639023,-150.0,0.00018571,2]
[350657976,1738038639032,-150.0,0.00018571,2]
[350657977,1738038639041,-150.0,0.00018572,2]
[350657978,1738038639050,-150.0,0.00018572,2]
[350657979,1738038639059,-150.0,0.00018576,2]
[350657980,1738038639069,-150.0,0.00018578,2]
[350657981,1738038639079,-150.0,0.00018578,2]
[350657982,1738038639088,-150.0,0.00018579,2]
[350657983,1738038639097,-150.0,0.00018581,2]
[350657984,1738038639106,-150.0,0.00018581,2]
[350657985,1738038639116,-150.0,0.00018583,2]
[350657986,1738038639126,-1000.0,0.00018583,2]
[350657987,1738038639135,-150.0,0.00018585,2]
[350657988,1738038639144,-150.0,0.00018585,2]
[350657989,1738038639153,-150.0,0.00018586,2]
[350657990,1738038639162,-150.0,0.00018589,2]
[350657991,1738038639171,-150.0,0.00018591,2]
[350657992,1738038639180,-1000.0,0.00018594,2]
[350657993,1738038639189,-2827.36466382,0.000186,2]
[350657994,1738038639198,-6754.43868094,0.000186,2]
[350657995,1738038639207,-416.0,0.000186,2]
[350657996,1738038639216,-211.0,0.000186,2]
[350657997,1738038639226,-205.0,0.000186,2]
[350657998,1738038639235,-1000.0,0.000186,2]
[350657999,1738038639243,-442.41,0.000186,2]
[350658000,1738038639252,-774.41,0.000186,2]
[350658001,1738038639261,-773.96,0.000186,2]
[350658002,1738038639270,-438.99,0.000186,2]
[350658003,1738038639279,-438.99,0.000186,2]
[350658004,1738038639288,-773.96,0.000186,2]
[350658005,1738038639298,-2193.7020134,0.00018603,2]
[350658006,1738038639307,-150.0,0.00018607,2]
[350658007,1738038639317,-150.0,0.0001861,2]
[350658008,1738038639326,-150.0,0.00018612,2]
[350658009,1738038639336,-1000.0,0.0001862,2]
[350658010,1738038639345,-150.0,0.00018628,2]
[350658011,1738038639354,-1000.0,0.00018629,2]
[350658012,1738038639363,-150.0,0.00018632,2]
[350658013,1738038639371,-1000.0,0.00018636,2]
[350658014,1738038639380,-150.0,0.00018637,2]
[350658015,1738038639389,-1000.0,0.00018637,2]
[350658016,1738038639398,-1000.0,0.00018638,2]
[350658017,1738038639406,-1000.0,0.00018642,2]
[350658018,1738038639416,-150.0,0.00018645,2]
[350658019,1738038639425,-150.0,0.00018645,2]
[350658020,1738038639435,-150.0,0.00018648,2]
[350658021,1738038639444,-500.0,0.0001865,2]
[350658022,1738038639453,-150.0,0.0001865,2]
[350658023,1738038639462,-150.0,0.0001865,2]
[350658024,1738038639471,-150.0,0.0001865,2]
[350658025,1738038639480,-150.0,0.00018654,2]
[350658026,1738038639490,-150.0,0.00018655,2]
[350658027,1738038639499,-150.0,0.00018656,2]
[350658028,1738038639508,-150.0,0.00018657,2]
[350658029,1738038639518,-150.0,0.0001866,2]
[350658030,1738038639528,-150.0,0.0001866,2]
[350658031,1738038639537,-150.0,0.00018662,2]
[350658032,1738038639547,-150.0,0.00018663,2]
[350658033,1738038639556,-150.0,0.00018665,2]
[350658034,1738038639565,-150.0,0.00018666,2]
[350658035,1738038639574,-1000.0,0.00018669,2]
[350658036,1738038639583,-150.0,0.00018673,2]
[350658037,1738038639592,-150.0,0.00018673,2]
[350658038,1738038639601,-150.0,0.00018673,2]
[350658039,1738038639610,-150.0,0.00018675,2]
[350658040,1738038639620,-150.0,0.00018678,2]
[350658041,1738038639629,-150.0,0.00018678,2]
[350658042,1738038639639,-150.0,0.0001868,2]
[350658043,1738038639648,-2193.7020134,0.00018685,2]
[350658044,1738038639657,-150.0,0.00018686,2]
[350658046,1738038639666,-150.0,0.00018687,2]
[350658047,1738038639676,-150.0,0.00018689,2]
[350658048,1738038639685,-1000.0,0.0001869,2]
[350658049,1738038639694,-1000.0,0.00018691,2]
[350658051,1738038639704,-150.0,0.00018697,2]
[350658053,1738038639713,-150.0,0.00018699,2]
[350658054,1738038639722,-5000.0,0.000187,2]
[350658055,1738038639731,-185.0071,0.000187,2]
[350658056,1738038639740,-7656.4366,0.000187,2]
[350658057,1738038639750,-186.97663198,0.000187,2]
[350658058,1738038639759,-3022.40752877,0.000187,2]
[350658059,1738038639768,-288.23,0.000187,31]
[350658060,1738038639777,-288.23,0.000187,31]
[350658061,1738038639786,-288.23,0.000187,31]
[350658062,1738038639795,-288.23,0.000187,31]
[350658064,1738038639805,-288.23,0.000187,31]
[350658066,1738038639814,-288.23,0.000187,31]
[350658067,1738038639824,-288.23,0.000187,31]
[350658068,1738038639834,-288.23,0.000187,31]
[350658069,1738038639843,-288.23,0.000187,31]
[350658070,1738038639852,-288.23,0.000187,31]
[350658071,1738038639861,-288.23,0.000187,31]
[350658072,1738038639871,-288.23,0.000187,31]
[350658073,1738038639883,-288.23,0.000187,31]
[350658074,1738038639892,-288.23,0.000187,31]
[350658075,1738038639901,-288.23,0.000187,31]
[350658076,1738038639911,-288.23,0.000187,31]
[350658077,1738038639920,-11815.24913821,0.000187,2]
[350658078,1738038639929,-365.23358837,0.000187,2]
[350658079,1738038639938,-683.63805232,0.000187,2]
[350658080,1738038639947,-150.0,0.00018704,2]
[350658081,1738038639958,-152.63335777,0.00018705,2]
[350658082,1738038639968,-150.0,0.00018707,2]
[350658083,1738038639977,-150.0,0.00018709,2]
[350658084,1738038639986,-150.0,0.00018709,2]
[350658085,1738038639995,-150.0,0.00018712,2]
[350658086,1738038640004,-150.0,0.00018714,2]
[350658087,1738038640013,-150.0,0.00018719,2]
[350658088,1738038640023,-150.0,0.0001872,2]
[350658089,1738038640032,-150.0,0.0001872,2]
[350658090,1738038640041,-150.0,0.00018721,2]
[350658091,1738038640050,-150.0,0.00018721,2]
[350658092,1738038640059,-150.0,0.00018723,2]
[350658093,1738038640068,-150.0,0.00018723,2]
[350658094,1738038640077,-1000.0,0.00018724,2]
[350658095,1738038640087,-150.0,0.00018726,2]
[350658096,1738038640096,-319.57206029,0.00018726,2]
[350658097,1738038640105,-150.0,0.00018728,2]
[350658098,1738038640114,-150.0,0.00018733,2]
[350658099,1738038640123,-150.0,0.00018741,2]
[350658100,1738038640132,-150.0,0.00018741,2]
[350658101,1738038640142,-150.0,0.00018743,2]
[350658102,1738038640151,-150.0,0.00018743,2]
[350658103,1738038640161,-150.0,0.00018743,2]
[350658104,1738038640170,-715.37,0.00018746,2]
[350658105,1738038640180,-150.0,0.00018747,2]
[350658106,1738038640190,-150.0,0.0001875,2]
[350658107,1738038640199,-150.0,0.00018751,2]
[350658108,1738038640209,-150.0,0.00018751,2]
[350658109,1738038640219,-150.0,0.00018753,2]
[350658110,1738038640228,-150.0,0.00018754,2]
[350658111,1738038640237,-150.0,0.00018755,2]
[350658112,1738038640246,-150.0,0.00018757,2]
[350658113,1738038640256,-156.70719273,0.00018758,2]
[350658114,1738038640402,-150.0,0.00018759,2]
[350658115,1738038640415,-1000.0,0.00018761,2]
[350658116,1738038640424,-1000.0,0.00018766,2]
[350658117,1738038640433,-28025.0,0.00018767,2]
[350658119,1738038640443,-2193.7020134,0.00018767,2]
[350658121,1738038640451,-300.0,0.0001877,2]
[350658122,1738038640461,-400.0793181,0.0001877,2]
[350658124,1738038640470,-400.0,0.0001877,2]
[350658126,1738038640479,-400.0,0.0001877,2]
[350658128,1738038640489,-400.0,0.0001877,2]
[350658130,1738038640498,-150.0,0.00018771,2]
[350658132,1738038640507,-504.07480115,0.00018773,2]
[350658133,1738038640516,-500.0,0.00018773,2]
[350658134,1738038640526,-500.0,0.00018773,2]
[350658135,1738038640535,-150.0,0.00018774,2]
[350658136,1738038640544,-150.0,0.00018775,2]
[350658137,1738038640554,-150.0,0.00018776,2]
[350658138,1738038640563,-150.0,0.00018778,2]
[350658139,1738038640576,-150.0,0.00018781,2]
[350658140,1738038640587,-150.0,0.00018784,2]